Cogmind - Beta 16 @@@ ROGUE MODE // 2025.11.04 @ 06:36:33 Player: Cereal Killer Result: Destroyed by Enhanced Grunt with Neutron Cannon Performance ------------- Evolutions (3) 1500 Regions Visited (13) 2600 Robots Destroyed (145) 725 Value Destroyed (6490) 6490 Prototype IDs (33) 660 Alien Tech Used (0) 0 Bonus (3050) 3050 TOTAL SCORE: 15025 Bonus ------- High Alert Combat Kills 1468 Follower Combat Kills 282 Entered Garrisons 400 Aligned with FarCom 300 Met Data Miner 300 Acquired ECA 300 Cogmind --------- Core Integrity 0/700 Matter 202/300 Energy 92/100 System Corruption 0% Temperature Warm (152) Movement Treading (265) Ox3 Location -7/Data Miner Parts ------- > --- POWER (1) -------- (None) > --- PROPULSION (2) --- Advanced Treads > --- UTILITY (6) ------ Huge Storage Unit Advanced Targeting Computer > --- WEAPON (4) ------- Mini Assault Cannon Mini Assault Cannon > --- INVENTORY (25) --- Wheel Wheel High-capacity Matter Pod (200) High-capacity Matter Pod (200) Encrypted Comm Array Transmission Jammer Improved Hardlight Generator Makeshift System Shield Makeshift System Shield KE Penetrator XL Autogun Array Proton Missile Launcher Impact Mace Makeshift Axe Makeshift Axe Makeshift Axe Peak State ------------ > --- POWER ------------ Fission Core > --- PROPULSION ------- Advanced Treads Advanced Treads > --- UTILITY ---------- Improved Heat Sink Huge Storage Unit Advanced Targeting Computer Hardened Medium Armor Plating Reflective Plating Improved Shield Generator > --- WEAPON ----------- Advanced Assault Cannon Mini Assault Cannon Mini Assault Cannon Makeshift Axe > --- INVENTORY -------- Light Antimatter Reactor Wheel Wheel Wheel High-capacity Matter Pod High-capacity Matter Pod Improved Terrain Scanner Encrypted Comm Array Transmission Jammer Improved Core Shielding Reactive Plating Improved Hardlight Generator Gatling Laser Enhanced Autogun KE Penetrator XL Autogun Array Gauss Cannon Heavy Flak Cannon Proton Missile Launcher Plasma Cutter Impact Mace Spear [Rating: 57] Favorites ----------- Power Fission Core Engine Heavy Ion Engine Power Core Fission Core Reactor Light Antimatter Reactor Propulsion Advanced Treads Treads Advanced Treads Wheel Wheel Utility Huge Storage Unit Device Improved Heat Sink Storage Huge Storage Unit Processor Advanced Targeting Computer Protection Hardened Medium Armor Plating Weapon Gatling Laser Energy Gun Gatling Laser Ballistic Gun Assault Rifle Ballistic Cannon Improved Light Cannon Launcher Mini Grenade Launcher Impact Weapon Impact Mace Slashing Weapon Makeshift Axe Piercing Weapon Spear Build | -11 -10 -10 -10 -9 -8 -8 -8 -8 -8 -7 -7 -7 -7 ------- Run | Yrd Mat Min Exi Min Mat Gar Mat Gar Mat Fac Low Low Dat Slots Evolved 6 | . . . . . 4 . . . . 2 . . . Power . | . . . . . . . . . . . . . . Propulsion . | . . . . . . . . . . . . . . Utility 4 | . . . . . 3 . . . . 1 . . . Weapon 2 | . . . . . 1 . . . . 1 . . . Parts Attached 87 | 8 6 . . 3 4 19 . 13 15 10 1 6 2 Power 12 | 1 1 . . 1 . 3 . 2 2 1 . . 1 Engine 7 | 1 1 . . 1 . 1 . 1 2 . . . . Core 4 | . . . . . . 2 . 1 . 1 . . . Reactor 1 | . . . . . . . . . . . . . 1 Propulsion 16 | 2 1 . . 2 . 3 . 2 4 1 1 . . Treads 4 | . 1 . . . . . . . 1 1 1 . . Leg . | . . . . . . . . . . . . . . Wheel 12 | 2 . . . 2 . 3 . 2 3 . . . . Hover . | . . . . . . . . . . . . . . Flight . | . . . . . . . . . . . . . . Utility 32 | 2 3 . . . 1 8 . 6 6 5 . 1 . Device 14 | 1 1 . . . 1 3 . 3 2 3 . . . Storage 3 | 1 1 . . . . . . 1 . . . . . Processor 2 | . . . . . . 1 . . 1 . . . . Hackware . | . . . . . . . . . . . . . . Protection 13 | . 1 . . . . 4 . 2 3 2 . 1 . Artifact . | . . . . . . . . . . . . . . Weapon 27 | 3 1 . . . 3 5 . 3 3 3 . 5 1 Energy Gun 6 | 2 . . . . 1 3 . . . . . . . Energy Cannon . | . . . . . . . . . . . . . . Ballistic Gun 4 | 1 1 . . . 2 . . . . . . . . Ballistic Cannon 10 | . . . . . . 1 . 2 3 3 . . 1 Launcher 1 | . . . . . . . . 1 . . . . . Special Weapon . | . . . . . . . . . . . . . . Impact Weapon 1 | . . . . . . . . . . . . 1 . Slashing Weapon 4 | . . . . . . 1 . . . . . 3 . Piercing Weapon 1 | . . . . . . . . . . . . 1 . Special Melee Weapon . | . . . . . . . . . . . . . . Unidentified Prototypes 5 | . . . . . 2 . . . 1 1 . 1 . Parts Lost 34 | . 1 . . 3 . 5 . 6 7 . 1 . 11 Power 6 | . 1 . . 1 . 1 . . 1 . . . 2 Propulsion 9 | . . . . 2 . 2 . 1 2 . 1 . 1 Utility 14 | . . . . . . 2 . 3 4 . . . 5 Weapon 5 | . . . . . . . . 2 . . . . 3 Highest Loss Streak 11 | . 1 . . 3 . 2 . 3 4 . 1 . 11 To Critical Strikes . | . . . . . . . . . . . . . . Average Backups 20 | 3 10 23 22 20 20 21 22 20 21 21 21 21 18 Power 1 | 1 1 2 1 . 2 2 2 2 2 1 1 1 . Propulsion 3 | 1 3 7 6 4 5 3 3 2 2 4 3 2 2 Utility 8 | . 3 11 10 11 8 8 11 10 9 8 8 7 6 Weapon 6 | . 1 3 3 3 3 6 6 5 7 6 7 7 7 Tool/Special . | . . . . . . . . . . . . . . Unused Backups 25 | . . . 3 1 2 1 1 1 4 1 . 2 9 Power 3 | . . . 1 . . . . 1 1 . . . . Propulsion 2 | . . . 1 . . . . . . . . . 1 Utility 11 | . . . . 1 1 . 1 . 2 1 . 1 4 Weapon 7 | . . . 1 . 1 1 . . 1 . . . 3 Tool/Special 2 | . . . . . . . . . . . . 1 1 Average Slot Usage (%) 97 | . 99 100 100 94 95 94 90 92 98 99 99 99 92 Engine 3 | . 13 14 14 11 9 2 . . 6 5 . . . Core 5 | . . . . . . 6 9 8 2 1 7 7 5 Treads 5 | . . . . . . . . . . 11 14 15 14 Wheel 10 | . 27 28 28 25 18 13 9 12 16 3 . . . Device 13 | . 12 . . . 23 14 9 16 12 13 10 15 12 Storage 8 | . 14 14 14 14 9 9 9 9 9 7 7 7 7 Processor 5 | . . . . . . 8 9 . 6 7 7 7 7 Protection 15 | . 1 14 14 14 9 12 18 18 17 16 19 14 12 Energy Gun 8 | . 11 . . . 4 17 27 19 5 . . . . Ballistic Gun 4 | . 16 28 28 28 21 6 . . . 2 . . . Ballistic Cannon 13 | . . . . . . 2 . 5 16 27 30 22 4 Slashing Weapon 1 | . . . . . . . . 1 . . . 5 20 Peak Build Rating 57 | 9 9 9 12 13 24 42 43 48 48 56 56 57 54 Average Rating 40 | 4 7 9 10 11 20 34 42 44 39 49 54 54 50 On Entrance 29 | . 9 9 9 12 13 24 42 43 48 36 56 54 54 Avg Prop Armor Cover (%) 7 | . . . . . . . . . 7 . . . . Naked Turns . | . . . . . . . . . . . . . . Heaviest Build 133 | 15 88 88 88 88 95 110 110 133 133 123 125 125 116 Greatest Support 44 | 32 32 32 32 32 20 28 28 28 26 44 44 44 44 Greatest Overweight (x) 12 | . 2 2 2 8 4 9 3 5 12 5 2 2 2 Average Overweight (x) 3 | . . 2 2 3 4 4 3 3 5 2 2 2 2 Largest Inventory Capacity 25 | 8 25 25 25 25 25 25 25 25 25 25 25 25 25 Average Capacity 24 | 6 14 25 25 25 25 25 25 25 25 25 25 25 25 Most Carried 25 | 7 23 24 25 25 25 25 25 25 25 25 25 25 25 Average Carried 23 | 3 10 23 24 23 23 24 24 23 24 24 24 24 23 Final Capacity 25 | 8 25 25 25 25 25 25 25 25 25 25 25 25 25 Final Carried 25 | 6 23 24 24 25 25 25 25 25 24 24 24 25 19 Class Distribution -------------------- 52% | Tank 16% | Skirmisher 15% | Mutant 10% | Scavenger-Tank 5% | Scavenger-Mutant Dominant Class ---------------- Mutant | -10/Materials Mutant | -10/Mines Mutant | -10/Exiles Mutant | -9/Mines Skirmisher | -8/Materials Skirmisher | -8/Garrison Tank | -8/Materials Tank | -8/Garrison Tank | -8/Materials Tank | -7/Factory Tank | -7/Lower Caves Tank | -7/Lower Caves Mutant | -7/Data Miner Resources | -11 -10 -10 -10 -9 -8 -8 -8 -8 -8 -7 -7 -7 -7 ----------- Run | Yrd Mat Min Exi Min Mat Gar Mat Gar Mat Fac Low Low Dat Matter Collected 4108 | 262 183 65 . 105 46 625 . 800 659 587 463 313 . Remotely . | . . . . . . . . . . . . . . Salvage Created 5227 | 81 353 . . 229 102 1415 60 1598 805 362 94 95 33 Parts 260 | 6 29 . . 12 8 57 2 61 53 26 . 6 . Haulers Intercepted 6 | . 2 . . . 1 . . . 2 1 . . . Recyclers Shooed 3 | . 1 . . . . . 1 . 1 . . . . Parts Field Recycled . | . . . . . . . . . . . . . . Retrieved Matter . | . . . . . . . . . . . . . . Parts Self-Destructed 21 | . . . . . . . . . . . 2 19 . Prevented . | . . . . . . . . . . . . . . Parts Restored . | . . . . . . . . . . . . . . Kills | -11 -10 -10 -10 -9 -8 -8 -8 -8 -8 -7 -7 -7 -7 ------- Run | Yrd Mat Min Exi Min Mat Gar Mat Gar Mat Fac Low Low Dat Combat Hostiles Destroyed 125 | . 8 . . 6 1 31 . 36 21 13 4 4 1 Guns 74 | . 8 . . 6 1 26 . 28 3 2 . . . Cannons 42 | . . . . . . 5 . 6 11 11 4 4 1 AOE 8 | . . . . . . . . 1 7 . . . . Classes Destroyed 17 | 2 4 . . 1 . 5 . 1 2 . . 2 . Worker 5 | . 1 . . . . . . . 3 1 . . . Tunneler 3 | 1 . . . 2 . . . . . . . . . Hauler 6 | . 2 . . . 1 . . . 2 1 . . . Recycler 4 | 1 1 . . 1 . . 1 . . . . . . Minesweeper 1 | . . . . . . . . . . . . 1 . Watcher 2 | . . . . . . . . . 2 . . . . Swarmer 29 | . 6 . . 4 . 7 . 8 . 4 . . . Cutter 4 | . . . . . . 2 . 2 . . . . . Grunt 51 | . 2 . . . 1 13 . 14 12 6 1 2 . Brawler 4 | . . . . . . 2 . . 2 . . . . Duelist 1 | . . . . . . . . . . . . 1 . Protector 2 | . . . . . . . . . 2 . . . . Sentry 18 | . . . . . . 4 . 9 4 . 1 . . Specialist 1 | . . . . . . . . 1 . . . . . Hunter 4 | . . . . . . 1 . . 1 . 2 . . Programmer 8 | . . . . . . 2 . 2 . 3 . 1 . Enhanced Grunt 1 | . . . . . . . . . . . . . 1 Assembled 2 | . . . . 2 . . . . . . . . . Thug 1 | . . . . . . . . 1 . . . . . Best Kill Streak 7 | 1 6 . . 4 1 7 1 5 7 6 2 3 1 Combat Bots Only 7 | . 3 . . 4 1 7 . 5 7 6 2 3 1 Max Kills in Single Turn 3 | 1 2 . . 1 1 2 1 2 3 2 1 1 1 Gunslinging 1 | . 1 . . . . 1 . 1 . . . . . Exploded 2 | . . . . . . . . 1 2 . . . . Melee . | . . . . . . . . . . . . . . Uniques/NPCs Destroyed . | . . . . . . . . . . . . . . Combat | -11 -10 -10 -10 -9 -8 -8 -8 -8 -8 -7 -7 -7 -7 -------- Run | Yrd Mat Min Exi Min Mat Gar Mat Gar Mat Fac Low Low Dat Hostile Shots Fired 519 | . 31 . . 27 7 87 . 106 83 52 65 13 48 Missed 140 | . 8 . . 11 3 25 . 31 18 15 19 4 6 Hits 379 | . 23 . . 16 4 62 . 75 65 37 46 9 42 Melee 9 | . . . . 3 . 1 . 4 1 . . . . Projectile 370 | . 23 . . 13 4 61 . 71 64 37 46 9 42 AOE 2 | . . . . . . 2 . . . . . . . Critical Strikes 9 | . . . . . 1 2 . 4 . 1 . 1 . Actively Blocked 3 | . . . . . . 1 . 2 . . . . . Part Disruptions 2 | . . . . . . . . 1 . . . . 1 Actively Blocked 1 | . . . . . . . . 1 . . . . . Damage Taken 6358 | . 229 . . 213 56 897 . 999 995 592 369 87 1921 Core 1200 | . 32 . . 39 . 176 . 131 84 64 60 9 605 Absorbed by Shields 116 | . . . . . . . . 18 . 33 6 34 25 Redirected to Shielding 383 | . . . . 18 4 116 . 87 12 12 20 . 114 Ignored by Resistances 152 | . . . . . . 7 . 30 59 18 20 18 . Regen/Repaired (Parts) 155 | . . . . . 60 . . . 84 11 . . . Core Remaining (%) 66 | 100 . . . 71 . . . . 28 . . . . Volleys Fired 330 | 5 42 . . 15 4 59 2 108 38 34 9 10 4 Largest 4 | 2 2 . . 2 3 3 3 3 3 4 4 4 4 Hottest 240 | 90 70 . . 40 90 240 240 240 204 153 153 153 160 Shots Fired 782 | 10 84 . . 30 12 164 6 193 88 106 36 40 13 Gun 429 | 10 84 . . 30 12 135 6 118 19 15 . . . Cannon 334 | . . . . . . 29 . 70 55 91 36 40 13 Launcher 19 | . . . . . . . . 5 14 . . . . Special . | . . . . . . . . . . . . . . Kinetic 505 | 3 52 . . 30 8 92 . 70 55 106 36 40 13 Thermal 258 | 7 32 . . . 4 72 6 118 19 . . . . Explosive 19 | . . . . . . . . 5 14 . . . . Electromagnetic . | . . . . . . . . . . . . . . Robot Hit Streak 17 | 2 10 . . 7 5 17 9 16 9 10 10 9 9 Robot Miss Streak 6 | 1 4 . . 2 1 6 3 4 5 4 2 3 1 Penetration Max 1 | . . . . . . . . 1 . . . . . Secondary Targets 15 | . 2 . . . . 8 . 5 . . . . . Max Gunslinging Chain 2 | . 1 . . . . 2 . 1 . . . . . Shots Hit Robots 564 | 5 49 . . 19 8 149 3 154 58 60 21 26 12 Core Hits 316 | 3 19 . . 11 5 74 2 87 71 24 6 10 4 Critical Kills 6 | . . . . . . . . 6 . . . . . Critical Parts Destroyed 6 | . . . . 1 . . . 5 . . . . . Critical Strikes 31 | . 3 . . 1 . 3 . 15 1 3 3 1 1 Burn 3 | . 3 . . . . . . . . . . . . Destroy 13 | . . . . 1 . . . 12 . . . . . Blast 7 | . . . . . . . . . . 3 3 1 . Sever 8 | . . . . . . 3 . 3 1 . . . 1 Melee Attacks 95 | . . . . . . 50 . 38 2 . . 2 3 Impact . | . . . . . . . . . . . . . . Slashing 92 | . . . . . . 50 . 38 2 . . 1 1 Piercing 3 | . . . . . . . . . . . . 1 2 Sneak Attacks 3 | . . . . . . . . . 2 . . 1 . Combat Hostiles . | . . . . . . . . . . . . . . Follow-up Attacks 1 | . . . . . . . . . . . . . 1 Damage Inflicted 13970 | 62 652 . . 251 108 3497 97 4086 2207 1380 503 778 349 Guns 5768 | 62 652 . . 251 108 1834 97 2346 293 125 . . . Cannons 4511 | . . . . . . 405 . 440 855 1255 503 735 318 Explosions 1324 | . . . . . . . . 327 997 . . . . Melee 2367 | . . . . . . 1258 . 973 62 . . 43 31 Ramming . | . . . . . . . . . . . . . . Kinetic 5904 | 25 389 . . 251 69 939 . 440 855 1380 503 735 318 Thermal 4375 | 37 263 . . . 39 1300 97 2346 293 . . . . Explosive 1324 | . . . . . . . . 327 997 . . . . Electromagnetic . | . . . . . . . . . . . . . . Impact . | . . . . . . . . . . . . . . Slashing 2324 | . . . . . . 1258 . 973 62 . . . 31 Piercing 43 | . . . . . . . . . . . . 43 . Highest Corruption 3 | . . . . . . . . 3 3 3 . . . Average Corruption 2 | . . . . . . . . 2 2 2 . . . Corruption Purged 8 | . . . . . . . . . 3 5 . . . Corruption Blocked . | . . . . . . . . . . . . . . Effects 37 | . . . . . . . . 22 6 9 . . . Message Errors 8 | . . . . . . . . 7 1 . . . . Matter Fused 13 | . . . . . . . . 5 3 5 . . . Heat Flow Errors 3 | . . . . . . . . 3 . . . . . Energy Discharges 1 | . . . . . . . . 1 . . . . . Data Loss (minor) 5 | . . . . . . . . 3 1 1 . . . Data Loss (major) 1 | . . . . . . . . . . 1 . . . Misfires 2 | . . . . . . . . 1 1 . . . . Alerts 3 | . . . . . . . . 1 . 2 . . . Weapon Failures 1 | . . . . . . . . 1 . . . . . Overload Shots . | . . . . . . . . . . . . . . Overflow Damage 120 | . . . . . . 24 . 17 . 16 55 8 . Projectiles 120 | . . . . . . 24 . 17 . 16 55 8 . Explosions . | . . . . . . . . . . . . . . Melee . | . . . . . . . . . . . . . . Knockbacks 58 | . . . . . . 5 . 5 11 25 4 7 1 Impact . | . . . . . . . . . . . . . . Kinetic 56 | . . . . . . 5 . 5 11 24 4 6 1 Secondary 2 | . . . . . . . . . . 1 . 1 . Self-Inflicted Damage 40 | . . . . . . . . . 40 . . . . Shots 3 | . . . . . . . . . 3 . . . . Rammed . | . . . . . . . . . . . . . . Targets Rammed . | . . . . . . . . . . . . . . Kicked . | . . . . . . . . . . . . . . Crushed . | . . . . . . . . . . . . . . Highest Temperature 399 | 80 54 . . . 395 223 214 303 344 166 374 271 399 Average Temperature 77 | 27 17 . . . 115 35 113 77 107 55 176 110 175 Received Heat Transfer 1229 | . 12 . . . 45 261 . 306 414 54 69 68 . Effects 6 | . . . . . 1 . . . 1 . . . 4 Shutdowns 3 | . . . . . 1 . . . 1 . . . 1 Interference 3 | . . . . . . . . . . . . . 3 Siege Activations . | . . . . . . . . . . . . . . Martial Activations . | . . . . . . . . . . . . . . Shielding Activations . | . . . . . . . . . . . . . . Robots Disrupted . | . . . . . . . . . . . . . . Combat Hostiles . | . . . . . . . . . . . . . . Robots Corrupted . | . . . . . . . . . . . . . . Combat Hostiles . | . . . . . . . . . . . . . . Parts Fried . | . . . . . . . . . . . . . . Impact Corruptions . | . . . . . . . . . . . . . . Robots Melted 1 | . . . . . . . . 1 . . . . . Combat Hostiles 1 | . . . . . . . . 1 . . . . . Parts Melted 23 | . . . . . . 6 1 16 . . . . . Heat Transferred 9456 | 111 962 . . . 111 2750 200 4707 615 . . . . Parts Sabotaged . | . . . . . . . . . . . . . . Parts Stolen . | . . . . . . . . . . . . . . Parts Stripped . | . . . . . . . . . . . . . . Power Chain Reactions . | . . . . . . . . . . . . . . Alert | -11 -10 -10 -10 -9 -8 -8 -8 -8 -8 -7 -7 -7 -7 ------- Run | Yrd Mat Min Exi Min Mat Gar Mat Gar Mat Fac Low Low Dat Maximum Alert Level 5 | . . . . . . 4 2 5 3 2 . . . Low Security (%) 17 | 100 100 100 . 100 100 13 . . . . . . . Level 1 18 | . . . . . . 9 . . . 92 . . . Level 2 13 | . . . . . . 31 100 17 . 7 . . . Level 3 33 | . . . . . . 27 . 30 100 . . . . Level 4 14 | . . . . . . 18 . 40 . . . . . Level 5 2 | . . . . . . . . 10 . . . . . High Security . | . . . . . . . . . . . . . . Max Security . | . . . . . . . . . . . . . . Peak Influence 1801 | 5 145 . . 90 20 1321 643 1801 987 434 . . . Initial 877 | . . . . . . 2 643 410 877 401 . . . Average 666 | 1 42 . . 34 2 671 638 1122 888 324 . . . Influence Increases 4526 | 10 221 . . 105 31 1389 8 1511 646 400 100 105 . Destroy 0b10 Robot/C 2560 | . 160 . . 80 20 720 . 780 380 260 80 80 . Destroy 0b10 Robot/NC 155 | 10 20 . . 15 5 20 5 20 45 10 . 5 . Destroy Leader 306 | . 24 . . 10 2 30 . 40 98 62 20 20 . Allied During Kill 38 | . . . . . . 14 . 24 . . . . . Successful Hack 112 | . 17 . . . 4 14 3 28 16 30 . . . Disable Machine 45 | . . . . . . 15 . 30 . . . . . Anti-Garrison Action 1050 | . . . . . . 550 . 500 . . . . . Destroy Structure 170 | . . . . . . 11 . 59 92 8 . . . Partial Spotted 15 | . . . . . . . . . 15 . . . . Lose Combat Pursuer 75 | . . . . . . 15 . 30 . 30 . . . Influence Decreases 4526 | 10 221 . . 105 27 72 698 341 1565 1031 351 105 . Entered New Map 2400 | . . . . . . 2 678 221 924 481 94 . . Time Decay 1826 | 10 211 . . 75 27 . 20 . 571 550 257 105 . Lost Part 220 | . 10 . . 30 . 50 . 60 70 . . . . Lost Ally 80 | . . . . . . 20 . 60 . . . . . Squads Dispatched 10 | . . . . . . . . . 5 4 . 1 . Investigation . | . . . . . . . . . . . . . . Extermination 2 | . . . . . . . . . . 2 . . . Reinforcement 5 | . . . . . . . . . 3 2 . . . Assault 3 | . . . . . . . . . 2 . . 1 . Garrison . | . . . . . . . . . . . . . . Intercept . | . . . . . . . . . . . . . . Searches Triggered . | . . . . . . . . . . . . . . Construction Impeded 1 | . . . . . . . . . 1 . . . . Haulers Reinforced . | . . . . . . . . . . . . . . Active Scanning Responses . | . . . . . . . . . . . . . . Cargo Convoy Interrupts . | . . . . . . . . . . . . . . Stealth | -11 -10 -10 -10 -9 -8 -8 -8 -8 -8 -7 -7 -7 -7 --------- Run | Yrd Mat Min Exi Min Mat Gar Mat Gar Mat Fac Low Low Dat Distress Signals 5 | . 3 . . . . . . . 2 . . . . Communications Jammed . | . . . . . . . . . . . . . . Distress Signals . | . . . . . . . . . . . . . . Times Spotted 163 | . 18 . . 5 2 36 . 34 33 18 5 8 4 Peak Tracking Total 7 | . 5 . . 3 1 5 . 5 7 5 2 7 4 Tactical Retreats 4 | . . . . . . 1 . 2 . 1 . . . Traps | -11 -10 -10 -10 -9 -8 -8 -8 -8 -8 -7 -7 -7 -7 ------- Run | Yrd Mat Min Exi Min Mat Gar Mat Gar Mat Fac Low Low Dat Traps Triggered 25 | . 1 . . . . 8 . 12 . 4 . . . Indirectly . | . . . . . . . . . . . . . . Trap Hack Attempts . | . . . . . . . . . . . . . . Triggered . | . . . . . . . . . . . . . . Disarmed . | . . . . . . . . . . . . . . Reprogrammed . | . . . . . . . . . . . . . . Reused 2 | . . . . . . . . . . . . . 2 Traps Extracted . | . . . . . . . . . . . . . . Installed 3 | . . . . . . . . . . . . . 3 Triggered . | . . . . . . . . . . . . . . Most Traps Carried 3 | . . . . . . . . . . . . 3 3 Machines | -11 -10 -10 -10 -9 -8 -8 -8 -8 -8 -7 -7 -7 -7 ---------- Run | Yrd Mat Min Exi Min Mat Gar Mat Gar Mat Fac Low Low Dat Machines Disabled 11 | . . . . . . 5 . 6 . . . . . Max in Single Turn 1 | . . . . . . 1 . 1 . . . . . Garrison Relay 8 | . . . . . . 4 . 4 . . . . . Phase Generator 1 | . . . . . . 1 . . . . . . . Machines Repaired . | . . . . . . . . . . . . . . Machines Dismantled . | . . . . . . . . . . . . . . Machines Sabotaged . | . . . . . . . . . . . . . . Overloaded Fab Kills . | . . . . . . . . . . . . . . Hacking | -11 -10 -10 -10 -9 -8 -8 -8 -8 -8 -7 -7 -7 -7 --------- Run | Yrd Mat Min Exi Min Mat Gar Mat Gar Mat Fac Low Low Dat Machines Accessed 42 | . 5 . 2 . 2 4 2 4 10 10 2 1 . Terminals 26 | . 5 . . . . 4 1 4 6 6 . . . Fabricators 1 | . . . . . . . . . . 1 . . . Repair Stations 3 | . . . . . 1 . . . 1 1 . . . Recycling Units 1 | . . . . . . . . . 1 . . . . Scanalyzers 3 | . . . . . . . . . 2 1 . . . Garrison Access 3 | . . . . . 1 . 1 . . 1 . . . Total Hacks 104 | . 19 . 2 . 3 7 3 7 32 22 8 1 . Successful 59 | . 7 . 2 . 3 1 3 4 21 9 8 1 . Failed 42 | . 11 . . . . 6 . 3 10 12 . . . Catastrophic 3 | . 1 . . . . 1 . . . 1 . . . Database Lockouts 3 | . 1 . . . . . . . 1 1 . . . Manual 21 | . 13 . 1 . . . 1 . 3 3 . . . Terminals 62 | . 19 . . . . 7 2 7 15 12 . . . Fabricators 3 | . . . . . . . . . . 3 . . . Repair Stations 7 | . . . . . 2 . . . 2 3 . . . Recycling Units 3 | . . . . . . . . . 3 . . . . Scanalyzers 15 | . . . . . . . . . 12 3 . . . Garrison Access 3 | . . . . . 1 . 1 . . 1 . . . Terminal Hacks 34 | . 7 . 2 . . 1 1 4 4 6 8 1 . Record 8 | . . . 1 . . . . . . . 7 . . Robot Analysis 5 | . 4 . . . . . . . . 1 . . . Prototype ID Bank 3 | . 3 . . . . . . . . . . . . Open Door 3 | . . . . . . . . 1 . . 1 1 . Branch Access Points 1 | . . . . . . . . . . 1 . . . Emergency Access Points 2 | . . . . . . 1 . 1 . . . . . Alert Level 3 | . . . . . . . 1 . 1 1 . . . Locate Traps 1 | . . . . . . . . . . 1 . . . Zone Layout 5 | . . . . . . . . . 3 2 . . . Patrol Navigation 1 | . . . . . . . . 1 . . . . . Security Stations 1 | . . . . . . . . 1 . . . . . Proto ID Catalog 1 | . . . 1 . . . . . . . . . . Fabricator Hacks . | . . . . . . . . . . . . . . Repair Station Hacks 6 | . . . . . 2 . . . 2 2 . . . Scan Component 3 | . . . . . 1 . . . 1 1 . . . Repair 3 | . . . . . 1 . . . 1 1 . . . Recycling Unit Hacks 2 | . . . . . . . . . 2 . . . . Process 1 | . . . . . . . . . 1 . . . . Retrieve Matter 1 | . . . . . . . . . 1 . . . . Scanalyzer 12 | . . . . . . . . . 11 1 . . . Insert Component 4 | . . . . . . . . . 4 . . . . Analyze 4 | . . . . . . . . . 4 . . . . Retrieve Study 4 | . . . . . . . . . 3 1 . . . Garrison Access Hacks 2 | . . . . . 1 . 1 . . . . . . Unlock Access 2 | . . . . . 1 . 1 . . . . . . Unauthorized Hacks 3 | . . . . . . . 1 . 2 . . . . Terminals 3 | . . . . . . . 1 . 2 . . . . Botnet 3 | . . . . . . . 1 . 2 . . . . Fabricators . | . . . . . . . . . . . . . . Repair Stations . | . . . . . . . . . . . . . . Recycling Units . | . . . . . . . . . . . . . . Scanalyzers . | . . . . . . . . . . . . . . Garrison Access . | . . . . . . . . . . . . . . Data Cores Recovered . | . . . . . . . . . . . . . . Used . | . . . . . . . . . . . . . . Hacking Detections 26 | . 5 . . . . 4 . 2 6 9 . . . Full Trace Events 1 | . . . . . . 1 . . . . . . . Feedback Events . | . . . . . . . . . . . . . . Feedback Blocked . | . . . . . . . . . . . . . . Robot Schematics Acquired . | . . . . . . . . . . . . . . Robots Built . | . . . . . . . . . . . . . . Authchips . | . . . . . . . . . . . . . . Time . | . . . . . . . . . . . . . . Total Robot Build Rating . | . . . . . . . . . . . . . . Part Schematics Acquired 4 | . . . . . . . . . 4 . . . . Parts Built . | . . . . . . . . . . . . . . Authchips . | . . . . . . . . . . . . . . Time . | . . . . . . . . . . . . . . Total Part Build Rating . | . . . . . . . . . . . . . . Part Studies Acquired 4 | . . . . . . . . . 3 1 . . . Parts Repaired 3 | . . . . . 1 . . . 1 1 . . . Time 114 | . . . . . 26 . . . 44 44 . . . Parts Recycled . | . . . . . . . . . . . . . . Recycled Matter 239 | . . . . . . . . . 239 . . . . Retrieved Matter 277 | . . . . . . . . . 277 . . . . Retrieved Components . | . . . . . . . . . . . . . . Parts Scanalyzed 4 | . . . . . . . . . 4 . . . . Part Schematics Acquired 4 | . . . . . . . . . 4 . . . . Parts Damaged . | . . . . . . . . . . . . . . Bothacking | -11 -10 -10 -10 -9 -8 -8 -8 -8 -8 -7 -7 -7 -7 ------------ Run | Yrd Mat Min Exi Min Mat Gar Mat Gar Mat Fac Low Low Dat Used RIF Installer . | . . . . . . . . . . . . . . Robots Hacked . | . . . . . . . . . . . . . . Non-combat . | . . . . . . . . . . . . . . Combat . | . . . . . . . . . . . . . . Robot Hacks Applied . | . . . . . . . . . . . . . . Relay Couplers Released 34 | . . . . . . 18 . 16 . . . . . Machine Destruction 34 | . . . . . . 18 . 16 . . . . . Fabnet Peak Effective % . | . . . . . . . . . . . . . . Robots Rewired 6 | . . . . . . 2 . 2 . 1 . 1 . Allies Hacked . | . . . . . . . . . . . . . . Hacks Repelled . | . . . . . . . . . . . . . . Allies | -11 -10 -10 -10 -9 -8 -8 -8 -8 -8 -7 -7 -7 -7 -------- Run | Yrd Mat Min Exi Min Mat Gar Mat Gar Mat Fac Low Low Dat Total Allies 8 | . . . . . . 4 . 2 . 1 . 1 . Largest Group 2 | . . . . . . 2 2 2 . 1 . 1 1 Highest-Rated Group 64 | . . . . . . 64 64 64 . 12 . 16 16 Highest-Rated Ally 39 | . . . . . . 39 39 39 . 12 . 16 16 Initial Warlord ECA Mod 19 | . . . . . . . 9 9 19 18 18 18 18 Total Orders . | . . . . . . . . . . . . . . Ally Attacks 43 | . . . . . . 11 . 26 . 3 . . 3 Total Damage 1219 | . . . . . . 729 . 438 . 30 . . 22 Kills 9 | . . . . . . 6 . 3 . . . . . Allies Corrupted . | . . . . . . . . . . . . . . Allies Melted . | . . . . . . . . . . . . . . Intel | -11 -10 -10 -10 -9 -8 -8 -8 -8 -8 -7 -7 -7 -7 ------- Run | Yrd Mat Min Exi Min Mat Gar Mat Gar Mat Fac Low Low Dat Active Infowar (turns) 3343 | 2 605 . . . 235 5 . . 401 1326 769 . . Terrain 285 | 2 45 . . . 233 5 . . . . . . . Structural 1199 | . 560 . . . 235 3 . . 401 . . . . Jamming 2095 | . . . . . . . . . . 1326 769 . . Robot Analysis Total 5 | . 4 . . . . . . . . 1 . . . Derelict Logs Recovered 3 | . . 1 . . . . . . . . 2 . . Drone Launches . | . . . . . . . . . . . . . . Drone Recoveries . | . . . . . . . . . . . . . . Exploration | -11 -10 -10 -10 -9 -8 -8 -8 -8 -8 -7 -7 -7 -7 ------------- Run | Yrd Mat Min Exi Min Mat Gar Mat Gar Mat Fac Low Low Dat Turns Passed 11924 | 81 666 124 304 184 235 2222 44 2131 1730 1595 1103 1407 98 Spaces Moved 5826 | 49 464 95 230 95 125 1126 24 998 884 643 472 590 31 Core 13 | 13 . . . . . . . . . . . . . Treads 1584 | . . . . . . . . . . 491 472 590 31 Legs . | . . . . . . . . . . . . . . Wheels 4229 | 36 464 95 230 95 125 1126 24 998 884 152 . . . Hover . | . . . . . . . . . . . . . . Flight . | . . . . . . . . . . . . . . Fastest Speed 50 | 50 100 130 130 130 140 140 145 145 145 145 225 225 225 Average Speed 168 | 86 110 130 130 138 140 156 145 155 158 206 225 225 225 Slowest Speed 260 | 100 130 130 130 200 140 215 145 165 260 225 225 225 225 Overloaded Moves . | . . . . . . . . . . . . . . Propulsion Burnouts . | . . . . . . . . . . . . . . Robots Hopped . | . . . . . . . . . . . . . . Potential Cave-ins . | . . . . . . . . . . . . . . Cave-ins Triggered . | . . . . . . . . . . . . . . Exploration Rate (%) 47 | 4 73 29 61 32 15 98 3 93 66 20 63 64 45 Regions Visited 13 Branch Regions 6 Pre-discovered Areas 5 | . . . 1 . . . . . . . 4 . . Known Exits Taken 4 | . . . . . 1 . 1 . . 1 1 . . Unknown Exits Taken 7 | 1 1 1 1 1 . . . . 1 . . 1 . Scrap Searched 6 | . . 1 . 1 . . . . . . 4 . . Spaces Dug 25 | . . . . . . . . 2 23 . . . . Terrain Destroyed 132 | . . . . . . . . 23 100 2 5 2 . Melee . | . . . . . . . . . . . . . . Projectile 20 | . . . . . . . . 11 . 2 5 2 . AOE 112 | . . . . . . . . 12 100 . . . . Terrain Rammed . | . . . . . . . . . . . . . . Walls Destroyed . | . . . . . . . . . . . . . . Machines Disabled . | . . . . . . . . . . . . . . Actions | -11 -10 -10 -10 -9 -8 -8 -8 -8 -8 -7 -7 -7 -7 --------- Run | Yrd Mat Min Exi Min Mat Gar Mat Gar Mat Fac Low Low Dat Total 7099 | 77 531 95 238 118 179 1361 28 1305 1133 847 490 648 49 Wait 380 | 1 1 . . . 26 17 1 34 155 133 6 6 . Move 5813 | 48 463 94 229 94 124 1125 23 997 883 642 471 589 31 Hop . | . . . . . . . . . . . . . . Pick Up 111 | 14 18 1 3 5 11 11 1 10 17 10 1 9 . Fast Attach 12 | . . . . . 1 2 . 3 1 3 . 2 . Attach 44 | 7 1 . . 3 4 6 . 7 7 3 1 2 3 Detach 2 | . . . . . . . . . . . . 2 . Swap 75 | 1 6 . . . 2 14 . 15 18 12 2 2 3 Drop 67 | 1 . . 6 1 7 10 1 7 12 9 . 10 3 Fire 330 | 5 42 . . 15 4 59 2 108 38 34 9 10 4 Melee 93 | . . . . . . 50 . 38 2 . . 1 2 Ram . | . . . . . . . . . . . . . . Kick . | . . . . . . . . . . . . . . Crush . | . . . . . . . . . . . . . . Escape Stasis 119 | . . . . . . 56 . 63 . . . . . Rewire 50 | . . . . . . 11 . 23 . 1 . 15 . Trap 3 | . . . . . . . . . . . . . 3 Miscellaneous . | . . . . . . . . . . . . . . Route ------- -11/Scrapyard -10/Materials (discovered 2 exits: *Mat / [*Min]) -10/Mines (discovered 2 exits: Mat / *Exi) -10/Exiles (discovered 2 exits: [*Min x2]) -9/Mines -8/Materials -8/Garrison (discovered 3 exits: *Mat x3) -8/Materials -8/Garrison (discovered 3 exits: *Mat x3) -8/Materials (discovered 2 exits: *Fac x2) -7/Factory (discovered 3 exits: [*Fac] / *Low x2) -7/Lower Caves -7/Lower Caves -7/Data Miner (discovered 1 exit: [*Pro]) History --------- Turn | Location | Event 44 | -11/Scrapyard | Discovered new exit (range 16) 82 | -11/Scrapyard | Entered Materials 205 | -10/Materials | Discovered new exit (range 10) 220 | -10/Materials | Central database locked down 313 | -10/Materials | Build established: Mutant 525 | -10/Materials | Discovered new exit (range 14) 748 | -10/Materials | Entered Mines 774 | -10/Mines | Identified exit to Materials 865 | -10/Mines | Deemed a non-threat by the Exiles lab entrance 866 | -10/Mines | Discovered new exit (range 5) 872 | -10/Mines | Entered Exiles 892 | -10/Exiles | Discovered new exit (range 15) 905 | -10/Exiles | Met 8R-AWN 926 | -10/Exiles | Met EX-HEX 963 | -10/Exiles | Met EX-BIN 978 | -10/Exiles | Aligned with FarCom system 979 | -10/Exiles | Given EX-Vault access code 1010 | -10/Exiles | Opened EX-Vault 1021 | -10/Exiles | Found XL Autogun Array 1047 | -10/Exiles | Warned to stay clear of 0b10 Research branches 1086 | -10/Exiles | Met EX-DEC 1095 | -10/Exiles | Learned location of Zion (-6) 1166 | -10/Exiles | Discovered new exit (range 10) 1176 | -10/Exiles | Left Exiles lab with XL Autogun Array 1176 | -10/Exiles | Entered Mines 1188 | -9/Mines | Met a Derelict bent on vengeance 1225 | -9/Mines | Assembled infested the area 1230 | -9/Mines | Assisted by a Guerilla fighting off Assembled 1290 | -9/Mines | Lost 3 parts (1p2n) 1356 | -9/Mines | Discovered new exit (range 3) 1360 | -9/Mines | Entered Materials 1360 | -8/Materials | Evolved 4 slots: Utility x3, Weapon x1 1555 | -8/Materials | Repaired Lgt. Cannon 1589 | -8/Materials | Identified exit to Garrison 1595 | -8/Materials | Entered Garrison 1677 | -8/Garrison | Build established: Skirmisher 1757 | -8/Garrison | Triggered checkpoint 2077 | -8/Garrison | Triggered checkpoint 2093 | -8/Garrison | Triggered checkpoint 2124 | -8/Garrison | Destroyed 7 combat bots 2241 | -8/Garrison | Discovered new exit (range 11) 2283 | -8/Garrison | Triggered checkpoint 2318 | -8/Garrison | Garrison Relay disabled 2453 | -8/Garrison | Triggered checkpoint 2493 | -8/Garrison | Triggered checkpoint 2516 | -8/Garrison | Phase Generator disabled 2522 | -8/Garrison | Met a derelict Sapper fleeing the area 2671 | -8/Garrison | Discovered new exit (range 10) 2758 | -8/Garrison | Triggered checkpoint 2793 | -8/Garrison | Garrison Relay disabled 2989 | -8/Garrison | Triggered checkpoint 3194 | -8/Garrison | Garrison Relay disabled 3261 | -8/Garrison | Triggered checkpoint 3270 | -8/Garrison | Discovered new exit (range 15) 3395 | -8/Garrison | Rescued a captive Derelict 3396 | -8/Garrison | Rescued a captive Derelict 3656 | -8/Garrison | Build established: Tank 3817 | -8/Garrison | Entered Materials 3817 | -8/Materials | Accompanied by 2 allies 3859 | -8/Materials | Identified exit to Garrison 3861 | -8/Materials | Entered Garrison 3861 | -8/Garrison | Accompanied by 2 allies 3927 | -8/Garrison | Triggered checkpoint 3963 | -8/Garrison | Garrison Relay disabled 4147 | -8/Garrison | Triggered checkpoint 4189 | -8/Garrison | Triggered checkpoint 4293 | -8/Garrison | Triggered checkpoint 4307 | -8/Garrison | Discovered new exit (range 15) 4539 | -8/Garrison | Triggered checkpoint 4569 | -8/Garrison | Garrison Relay disabled 4887 | -8/Garrison | Triggered checkpoint 4912 | -8/Garrison | Discovered new exit (range 8) 4959 | -8/Garrison | Garrison Relay disabled 5162 | -8/Garrison | Learned Materials security intel 5223 | -8/Garrison | Core integrity fell below 50% 5253 | -8/Garrison | Lost 3 parts (1n1u1w) 5346 | -8/Garrison | Discovered new exit (range 11) 5397 | -8/Garrison | Triggered checkpoint 5451 | -8/Garrison | Garrison Relay disabled 5751 | -8/Garrison | Triggered checkpoint 5992 | -8/Garrison | Entered Materials 6258 | -8/Materials | Repaired Gatling Laser 6392 | -8/Materials | First assault squad dispatched 6509 | -8/Materials | Destroyed 7 combat bots 6511 | -8/Materials | Lost 4 parts (1p1n2u) 6561 | -8/Materials | Discovered new exit (range 10) 6716 | -8/Materials | Central database locked down 6860 | -8/Materials | Discovered new exit (range 21) 7036 | -8/Materials | Build established: Scavenger-Tank 7598 | -8/Materials | Build established: Tank 7722 | -8/Materials | Entered Factory 7722 | -7/Factory | Evolved 2 slots: Utility x1, Weapon x1 8029 | -7/Factory | Build established: Scavenger-Tank 8257 | -7/Factory | Central database locked down 8342 | -7/Factory | Build established: Tank 8470 | -7/Factory | Repaired Imp. Shield Generator 8537 | -7/Factory | Discovered new exit (range 8) 8573 | -7/Factory | Identified exit to Lower Caves 9317 | -7/Factory | Entered Lower Caves 9332 | -7/Lower Caves | Encountered a Warlord checkpoint 9389 | -7/Lower Caves | Attracted the attention of an 0b10 checkpoint 9427 | -7/Lower Caves | Met a Warlord Commander 9428 | -7/Lower Caves | Learned location of Warlord (-4) 9429 | -7/Lower Caves | Warlord Commander delivered Encrypted Comm Array 9429 | -7/Lower Caves | Found Encrypted Comm Array 9677 | -7/Lower Caves | Identified exit to Lower Caves 10067 | -7/Lower Caves | Entered an active Warlord outpost 10086 | -7/Lower Caves | Learned location of Extension (-6) 10086 | -7/Lower Caves | Learned Research security intel 10420 | -7/Lower Caves | Entered another Lower Caves area 10975 | -7/Lower Caves | Encountered a Warlord checkpoint 11066 | -7/Lower Caves | Attracted the attention of an 0b10 outpost 11744 | -7/Lower Caves | Build established: Mutant 11762 | -7/Lower Caves | Discovered new exit (range 8) 11827 | -7/Lower Caves | Entered Data Miner 11827 | -7/Data Miner | Accompanied by 1 ally 11827 | -7/Data Miner | Discovered new exit (range 6) 11870 | -7/Data Miner | Met Data Miner 11911 | -7/Data Miner | Data Conduit disabled 11913 | -7/Data Miner | Core integrity fell below 50% 11919 | -7/Data Miner | Core integrity fell below 20% 11925 | -7/Data Miner | Destroyed by Enhanced Grunt with Neutron Cannon Last Messages --------------- 11902_ Enhanced Grunt heat damages Prototype Storage, Adv. Heat Sink. 11902_ Enhanced Grunt overheating. 11905_ Imp. Heat Sink destroyed. 11905_ Hrd. Medium Armor Plating destroyed. 11907_ Enhanced Grunt heat short circuits Prototype Leg. 11907_ Fission Core destroyed. 11908_ Imp. Propulsion Shielding destroyed. 11909_ Imp. Shield Generator destroyed. 11911_ Data Conduit disabled. 11912_ Adv. Treads+ destroyed. 11915_ Enhanced Grunt heat damages Adv. Heat Sink. 11919_ Reactive Plating destroyed. 11920_ Adv. Assault Cannon+ destroyed. 11921_ Lgt. Antimatter Reactor destroyed. 11921_ Enhanced Grunt knocked back. 11921_ Enhanced Grunt destroyed. 11922_ Gauss Cannon destroyed. Map ----- +----------------------------------------------------+ | | | | | | | | | | | | | | | | | | | | | | | | | | | | | | | | | | | ?????????????????????????????????????????????????? | | ?????????????????????????????????????????????????? | | ?????????????????????????????????????????????????? | | ?????????????????????????????????????????????????? | | ?????????????????????????????????????####????????? | | ??????????????????#??????#####?#???### #????????? | | ???????????"""""""""######%# # #??## #????????? | | ???????????"" """""""";%%g#%# ## < ##????????? | | ???????????"" @%^ g ######???? | | ?????????" %g % #???? | | ?????????" #???? | | ????????? #???? | | ?????????? ##???? | | ?????????? """"""""" """""#####????? | | ??????????? """"###############????????? | | ??????????? """""###??????????????????????? | | ???????????"" "####?????????????????????????? | | ????????????"## "?????????????????????????????? | | ??????????????## ???????????????????????????????? | | ???????????????# ????????????????????????????????? | | ?????????????????????????????????????????????????? | | ?????????????????????????????????????????????????? | | ?????????????????????????????????????????????????? | | ?????????????????????????????????????????????????? | | ?????????????????????????????????????????????????? | | ?????????????????????????????????????????????????? | | ?????????????????????????????????????????????????? | | ?????????????????????????????????????????????????? | | ?????????????????????????????????????????????????? | | ?????????????????????????????????????????????????? | | ?????????????????????????????????????????????????? | | ?????????????????????????????????????????????????? | | ?????????????????????????????????????????????????? | +----------------------------------------------------+ Best States ------------- Heat Dissipation 64 Energy Generation 21 Energy Capacity 310 Matter Stores 300 Matter Capacity 300 Sight Range 16 Terrain Scan Range 16 Terrain Scan Density 10 Jamming Range 12 Armor Coverage 375 Resistance: KI 20 Resistance: TH 10 Core Shielding 30 Propulsion Shielding 66 Weapon Shielding 33 Phase Shifting 5 Evasion (%) 50 Targeting Accuracy 8 Recoil Reduction 2 Item Schematics ----------------- Focal Shield | -8/Materials | Scanalyzed Imp. Heat Sink | -8/Materials | Scanalyzed Enh. Autogun | -8/Materials | Scanalyzed Hvy. Particle Gun | -8/Materials | Scanalyzed Robot Schematics ------------------ None Fabricated ------------ Nothing Repaired ---------- Lgt. Cannon | 50% | -8/Materials Gatling Laser | 1% | -8/Materials Imp. Shield Generator | 72% | -7/Factory Studied --------- Wheel | -8/Materials | Hacked Adv. Treads | -8/Materials | Hacked Imp. Light Cannon | -8/Materials | Hacked Adv. Assault Cannon | -7/Factory | Hacked Alien Tech Used ----------------- None Achievements -------------- None Challenges ------------ None Game ------ Seed GravitonCompanionExoskeleton Manual? 0 Play Time 01:32:25 Cumulative 315.9 hours Start 2025.11.03 @ 22:49:29 End 2025.11.04 @ 06:36:33 Sessions 5 Manual Loads 0 Difficulty Rogue Special Mode None Game No. 242 Rogue 233 Adventurer 9 Explorer 0 Win Type - Total 3 Types 2/0/0/1/0/0/0/0/0/0 Lore% 86 Gallery% 74 Achievement% 47 Wizard Run 0 Options --------- Layout 1 ASCII 0 Keyboard 0 Movement Numpad Keybinds 0 Fullscreen 1 Font 24/Smallcaps Map View 50x35 Zoom Use 0% Tactical HUD 1 Map Filters NONE Filters NONE Steam 1 RUN: f0f99e56-c7e2-438f-9853-02d7ff6ecf88